[Event "45th FIDE Womens Olympiad 2024"]
[Site "Budapest"]
[Date "2024.09.11"]
[Round "1.121"]
[White "Vilhete, Vania Fausto Da T."]
[Black "Mihok-Juhasz, Barbara"]
[Result "0-1"]
[ECO "E74"]
[WhiteElo "1877"]
[BlackElo "2193"]
[Annotator "ChessBase"]
[PlyCount "90"]
[EventDate "2024.09.05"]
[EventType "team-tourn"]
[EventCountry "HUN"]
[SourceTitle "playchess.com"]
[Source "ChessBase"]
[SourceQuality "1"]
[WhiteTeam "Mozambique"]
[BlackTeam "Hungary B"]
[WhiteTeamCountry "MOZ"]
[BlackTeamCountry "HUN"]
[TimeControl "40/5400+30:1800+30"]

1. d4 Nf6 2. c4 g6 3. Nc3 Bg7 4. e4 d6 5. Be2 O-O 6. Bg5 c5 7. d5 h6 8. Bf4 e6 9. dxe6 Bxe6 10. Qc1 Qa5 11. Bd2 Qb6 12. Rb1 Kh7 13. Nf3 Nc6 14. O-O Nd4 15. Nxd4 cxd4 16. Nd5 Bxd5 17. exd5 Ne4 18. Qc2 f5 19. Bd3 Rfe8 20. Rfe1 Nxd2 21. Qxd2 Re5 22. b4 Rae8 23. Kf1 Qd8 24. g3 h5 25. Be2 Qe7 26. Bf3 Bh6 27. Qd1 b6 28. Re2 Bg7 29. Qd3 Rxe2 30. Bxe2 Qe5 31. Bf3 Re7 32. Qd2 Bh6 33. Qc2 h4 34. Kg2 Rc7 35. Qe2 Qg7 36. Re1 Bg5 37. Qd3 b5 38. cxb5 Rc3 39. Qd1 Rc1 40. Qe2 d3 41. Qe6 Rxe1 42. Qxe1 d2 43. Qb1 Qc3 44. Bd1 Qc4 45. Qb3 h3+ 0-1

[Event "45th FIDE Womens Olympiad 2024"]
[Site "Budapest"]
[Date "2024.09.11"]
[Round "1.122"]
[White "Karacsonyi, Kata"]
[Black "Efentakis, Katina"]
[Result "1-0"]
[ECO "C87"]
[WhiteElo "2233"]
[BlackElo "1650"]
[Annotator "TA"]
[PlyCount "141"]
[EventDate "2024.09.05"]
[EventType "team-tourn"]
[EventCountry "HUN"]
[SourceTitle "playchess.com"]
[Source "ChessBase"]
[SourceQuality "1"]
[WhiteTeam "Hungary B"]
[BlackTeam "Mozambique"]
[WhiteTeamCountry "HUN"]
[BlackTeamCountry "MOZ"]
[TimeControl "40/5400+30:1800+30"]

{[%evp 17,140,31,54,32,35,45,55,17,30,34,58,22,42,0,0,0,0,0,-8,-13,-12,-102,-110,-118,-104,-98,0,0,0,-79,0,-16,-20,-70,0,-816,987,-2,24,35,24,0,0,0,0,0,0,0,15,0,0,0,6,0,7,20,8,6,12,16,220,166,137,45,82,6,116,68,54,0,632,730,888,794,861,833,1022,872,1033,1155,1576,1535,2178,4813,4134,3149,2858,3322,5273,9806,29978,29979,29982,29983,29986,29987,29986,29984,29984,29985,29985,29986,29986,29986,29988,29989,29990,29991,29993,29994,29994,29992,29992,29993,29995,29996,29996,29996,29996,29997,29997,29998,29998,29999,29999]} 1. e4 e5 2. Nf3 Nc6 3. Bb5 a6 4. Ba4 d6 5. O-O Nf6 6. c3 b5 7. Bc2 Be7 8. h3 O-O 9. Re1 Re8 10. d3 Bb7 11. Nbd2 {[%cal Bb1d2,Bd2f1,Bf1g3][%mdl 32]} h6 12. Nf1 {White is slightly better.} Bf8 13. Ng3 Ne7 14. Nh4 g6 15. Qf3 Nc8 16. Bb3 d5 17. exd5 {[%cal Oh4g6] And now Nxg6! would win.} Bxd5 18. Bxd5 Nxd5 19. Nhf5 gxf5 $17 20. Nxf5 {[%cal Oc3c4]} Ncb6 21. Re4 {[#]} Nf4 $1 22. Bxf4 $11 exf4 23. Rxf4 (23. Rae1 $11 Rxe4 24. Rxe4) 23... Kh7 (23... Qd5 $17 {...Qxf3 is the strong threat.} 24. Qg4+ Kh8) 24. Nd4 Bg7 25. Rf5 ({Better is} 25. Rxf7 $11 Kg8 26. Rb1) 25... f6 (25... Kh8 $15) 26. Rxf6 $2 {[%mdl 8192] [#]} Qd6 $4 {[%mdl 8192]} 27. Rf7 $2 (27. Rxd6 $18 cxd6 28. Nf5) 27... Qd5 28. Qf6 Qg5 29. Qf5+ Qxf5 30. Nxf5 Kg6 31. Rxg7+ Kxf5 32. Rxc7 Re2 33. c4 bxc4 (33... Rxb2 34. Rc5+ Ke6 (34... Kf4 35. Re1) 35. Rc6+ Ke5 36. Rxb6 $18) 34. dxc4 Rc8 35. g4+ Ke6 36. Rxc8 Nxc8 {[%mdl 4096] Endgame. KRN-KR} 37. b3 Na7 38. Kf1 Re5 (38... Rd2 $11 {and Black is okay.}) 39. Rd1 Nc6 40. a3 (40. f4 $16 Re3 41. c5 (41. Re1 Rxe1+ 42. Kxe1 Nb4 $18)) 40... a5 41. Rd3 ({White should play} 41. Re1 $16) 41... Re4 {[#]} (41... a4 $1 $11 {remains equal.}) 42. f3 ({White should try} 42. Re3 $1 $16 {[%cal Re3e4]} Ke5 43. Rxe4+ Kxe4 44. Kg2) 42... Rd4 43. Ke2 (43. Rxd4 $14 Nxd4 44. f4 (44. b4 axb4 45. axb4 Nc2 $16) 44... Nxb3 45. Ke2) 43... Rxd3 $4 {[%mdl 8192]} (43... a4 $11) 44. Kxd3 {KN-KP} Ke5 45. Ke3 Kd6 46. f4 Kc5 47. Kd3 Ne7 48. Ke4 Nc6 49. g5 hxg5 50. fxg5 Kd6 51. h4 Ke6 52. h5 Ne7 53. b4 axb4 54. axb4 {White mates.} Nc8 55. c5 Na7 56. h6 Kf7 57. Kd5 Nc8 58. b5 Ne7+ 59. Kd6 Nf5+ 60. Kd7 Kg6 61. b6 Kxg5 {KN-K3P} 62. h7 Kg6 63. h8=Q Ng7 64. Qxg7+ Kxg7 {KP-KP} 65. b7 Kh7 66. b8=Q Kg6 67. Qf4 Kh5 68. Qg3 Kh6 69. Ke6 Kh7 70. Kf6 {[%csl Gf6][%cal Rg3g7]} Kh8 71. Qg7# {Quite a comeback for White.   Weighted Error Value: White=0.47/Black=0.50.  Loses game:     	White=1     	Black=2      Missed win:     	White=1     	Black=1      Mistake:       	White=7     	Black=4      Inaccurate:     	White=3     	Black=1      OK:         	White=8     	Black=8      Best:        	White=1     	Black=3} 1-0

[Event "45th FIDE Womens Olympiad 2024"]
[Site "Budapest"]
[Date "2024.09.11"]
[Round "1.123"]
[White "Sandramo, Chineva Rufino"]
[Black "Demeter, Dorina"]
[Result "0-1"]
[ECO "C54"]
[WhiteElo "1524"]
[BlackElo "2199"]
[Annotator "ChessBase"]
[PlyCount "58"]
[EventDate "2024.09.05"]
[EventType "team-tourn"]
[EventCountry "HUN"]
[SourceTitle "playchess.com"]
[Source "ChessBase"]
[SourceQuality "1"]
[WhiteTeam "Mozambique"]
[BlackTeam "Hungary B"]
[WhiteTeamCountry "MOZ"]
[BlackTeamCountry "HUN"]
[TimeControl "40/5400+30:1800+30"]

1. e4 e5 2. Nf3 Nc6 3. Bc4 Bc5 4. d3 Nf6 5. c3 d6 6. Nbd2 a6 7. O-O Ba7 8. a4 h6 9. Re1 O-O 10. Nf1 Be6 11. Bxe6 fxe6 12. Be3 Bxe3 13. Nxe3 Qd7 14. b4 Ne7 15. h3 Ng6 16. Nh2 Nf4 17. Neg4 h5 18. Nxf6+ Rxf6 19. Re3 Raf8 20. c4 Qf7 21. Rg3 Rg6 22. Ra2 d5 23. c5 Qf6 24. b5 a5 25. Rb2 Rg5 26. Rxg5 Qxg5 27. g3 Nxh3+ 28. Kg2 Nf4+ 29. Kh1 Nxd3 0-1

[Event "45th FIDE Womens Olympiad 2024"]
[Site "Budapest"]
[Date "2024.09.11"]
[Round "1.125"]
[White "Repkova, Eva"]
[Black "Karelina, Polina"]
[Result "1-0"]
[ECO "B07"]
[WhiteElo "2319"]
[BlackElo "1898"]
[Annotator "ChessBase"]
[PlyCount "43"]
[EventDate "2024.09.05"]
[EventType "team-tourn"]
[EventCountry "HUN"]
[SourceTitle "playchess.com"]
[Source "ChessBase"]
[SourceQuality "1"]
[WhiteTeam "Slovakia"]
[BlackTeam "Bahamas"]
[WhiteTeamCountry "SVK"]
[BlackTeamCountry "BAH"]
[TimeControl "40/5400+30:1800+30"]

1. e4 d6 2. d4 Nf6 3. Bd3 e5 4. c3 Nbd7 5. Nf3 Be7 6. Nbd2 O-O 7. O-O c6 8. Re1 Re8 9. Nf1 Bf8 10. Ng3 Qc7 11. h3 g6 12. Be3 d5 13. Nxe5 Nxe5 14. dxe5 Nxe4 15. Bxe4 dxe4 16. Nxe4 Rd8 17. Qa4 b5 18. Nf6+ Kh8 19. Qh4 h5 20. Bg5 Be7 21. Re3 Kg7 22. Nxh5+ 1-0

[Event "45th FIDE Womens Olympiad 2024"]
[Site "Budapest"]
[Date "2024.09.11"]
[Round "1.126"]
[White "Thomas, Nelissa"]
[Black "Mrvova, Alena"]
[Result "0-1"]
[ECO "B40"]
[WhiteElo "1631"]
[BlackElo "2121"]
[Annotator "NA"]
[PlyCount "62"]
[EventDate "2024.09.05"]
[EventType "team-tourn"]
[EventCountry "HUN"]
[SourceTitle "playchess.com"]
[Source "ChessBase"]
[SourceQuality "1"]
[WhiteTeam "Bahamas"]
[BlackTeam "Slovakia"]
[WhiteTeamCountry "BAH"]
[BlackTeamCountry "SVK"]
[TimeControl "40/5400+30:1800+30"]

1. e4 c5 2. Nf3 e6 3. Nc3 a6 4. a4 b6 5. Bc4 Bb7 6. O-O d6 7. d3 Be7 8. Bf4 Nf6 9. Qd2 O-O 10. Rfe1 Ne8 11. Re3 Nc6 12. Ne1 Ne5 13. Rh3 Ng6 14. Be3 d5 15. Bb3 d4 16. Bh6 dxc3 17. bxc3 Bf6 18. Nf3 e5 19. Ng5 Nf4 20. Rg3 Nd6 21. Nxh7 Kxh7 22. Bxf4 c4 23. Rh3+ Kg8 24. Ba2 Bc8 25. Rg3 exf4 26. Qxf4 Re8 27. Re1 Be5 28. Rxg7+ Kxg7 29. Qf3 Qf6 30. Qd1 Bxh2+ 31. Kxh2 Qxf2 0-1

[Event "45th FIDE Womens Olympiad 2024"]
[Site "Budapest"]
[Date "2024.09.11"]
[Round "1.127"]
[White "Bochnickova, Simona"]
[Black "Johnson, Daijah"]
[Result "1-0"]
[ECO "B45"]
[WhiteElo "2138"]
[BlackElo "1625"]
[Annotator "NA RC"]
[PlyCount "35"]
[EventDate "2024.09.05"]
[EventType "team-tourn"]
[EventCountry "HUN"]
[SourceTitle "playchess.com"]
[Source "ChessBase"]
[SourceQuality "1"]
[WhiteTeam "Slovakia"]
[BlackTeam "Bahamas"]
[WhiteTeamCountry "SVK"]
[BlackTeamCountry "BAH"]
[TimeControl "40/5400+30:1800+30"]

1. e4 c5 2. Nf3 Nc6 3. d4 cxd4 4. Nxd4 e6 5. Nc3 Nf6 6. Nxc6 bxc6 7. e5 Nd5 8. Nxd5 cxd5 9. Bd3 Be7 10. Qg4 g6 11. h4 f5 12. exf6 Bxf6 13. Rh3 e5 14. Bxg6+ Ke7 15. Rf3 Qg8 16. Rxf6 d6 17. Qg5 h6 18. Rf7+ 1-0

[Event "45th FIDE Womens Olympiad 2024"]
[Site "Budapest"]
[Date "2024.09.11"]
[Round "1.128"]
[White "Pride, Chika"]
[Black "Walter, Ema"]
[Result "0-1"]
[ECO "C54"]
[WhiteElo "1587"]
[BlackElo "2055"]
[Annotator "NA"]
[PlyCount "114"]
[EventDate "2024.09.05"]
[EventType "team-tourn"]
[EventCountry "HUN"]
[SourceTitle "playchess.com"]
[Source "ChessBase"]
[SourceQuality "1"]
[WhiteTeam "Bahamas"]
[BlackTeam "Slovakia"]
[WhiteTeamCountry "BAH"]
[BlackTeamCountry "SVK"]
[TimeControl "40/5400+30:1800+30"]

1. e4 e5 2. Nf3 Nc6 3. Bc4 Bc5 4. d3 Nf6 5. c3 a5 6. a4 Ba7 7. O-O h6 8. Nbd2 O-O 9. Re1 d6 10. Nf1 Re8 11. Ng3 Be6 12. Bxe6 Rxe6 13. Be3 Bxe3 14. Rxe3 d5 15. Qb3 Ra6 16. Ra3 Rb6 17. Qc2 d4 18. Re1 dxc3 19. bxc3 Qd6 20. Raa1 Qc5 21. Rab1 Rd6 22. Rxb6 cxb6 23. Nf5 Nb4 24. Qe2 Nxd3 25. Nxd6 Nxe1 26. Qxe1 Qxd6 27. Qb1 Kf8 28. h3 Ke7 29. Qc2 Qc5 30. Kf1 Qc4+ 31. Ke1 Nxe4 32. Nxe5 Qxc3+ 33. Qxc3 Nxc3 34. Nc4 Nxa4 35. Kd2 Ke6 36. Kc2 Kd5 37. Ne3+ Ke6 38. Nc4 f6 39. Kb3 Nc5+ 40. Kc3 Nd7 41. f3 g6 42. g3 Kd5 43. h4 Kc5 44. Ne3 b5 45. Nc2 b4+ 46. Kb3 b5 47. f4 a4+ 48. Kb2 b3 49. Na3 Kb4 50. Nb1 Nc5 51. Nd2 a3+ 52. Ka1 b2+ 53. Ka2 Na4 54. Nb1 Nc3+ 55. Nxc3 Kxc3 56. Kb1 Kb3 57. g4 a2# 0-1

[Event "45th FIDE Womens Olympiad 2024"]
[Site "Budapest"]
[Date "2024.09.11"]
[Round "1.129"]
[White "Lyons, Kieran"]
[Black "Cramling, Pia"]
[Result "0-1"]
[ECO "B43"]
[WhiteElo "1818"]
[BlackElo "2425"]
[Annotator "TA"]
[PlyCount "76"]
[EventDate "2024.09.05"]
[EventType "team-tourn"]
[EventCountry "HUN"]
[SourceTitle "playchess.com"]
[Source "ChessBase"]
[SourceQuality "1"]
[WhiteTeam "Fiji"]
[BlackTeam "Sweden"]
[WhiteTeamCountry "FIJ"]
[BlackTeamCountry "SWE"]
[TimeControl "40/5400+30:1800+30"]

{[%evp 15,76,35,28,1,3,10,27,24,35,29,67,-28,-25,-44,-27,-34,-31,-43,-21,-142,-167,-218,-122,-118,-52,-55,-35,-49,0,-59,-48,-43,-45,-37,-58,-36,-54,-27,-22,-651,-632,-1195,-1182,-1147,-1134,-1483,-970,-985,-1008,-1028,-1029,-1138,-1129,-1292,-1342,-1270,-1381,-1356,-1359,-1366,-1320,-1277,-1231]} 1. e4 c5 2. Nf3 e6 3. d4 cxd4 4. Nxd4 a6 5. Nc3 b5 6. Bd3 Bb7 7. O-O Nc6 8. Nxc6 Bxc6 9. e5 f5 10. Be3 g6 11. Ne2 {White has an edge.} Nh6 12. Nd4 (12. a4 {seems wilder.} Bg7 13. Nd4 Ng4 14. Bf4) 12... Bb7 13. Nf3 ({Better is} 13. a4 $14) 13... Nf7 $11 14. Bd4 Bg7 15. Re1 O-O 16. c3 Rc8 17. Nd2 (17. Bf1 $11 {remains equal.}) 17... d6 $17 18. f4 (18. exd6 {is a better defense.} e5 (18... Qxd6 19. Bxg7 Kxg7 20. Bf1 $15) 19. Be3) 18... dxe5 (18... Bh6 $19 19. exd6 Qxd6) 19. fxe5 Qd5 $40 {[%mdl 128] White needs to defend precisely.} (19... Bxe5 $17 20. Bxe5 Nxe5 (20... Qxd3 21. Bd4 $15) 21. Rxe5 Qxd3) 20. Qf3 $15 Qd7 (20... Nxe5 $2 21. Qxd5 Bxd5 22. Bxe5 $18) 21. Qg3 g5 (21... Bd5 $15) 22. Nf3 (22. a4 $11) 22... g4 23. Nd2 h5 {Hoping for ...Qd8.} 24. Qh4 Qd5 $1 {[%csl LRe5,LRg2]} 25. Bf1 Bh6 $1 (25... Bxe5 $2 {is the wrong capture.} 26. Rxe5 Nxe5 27. Qxh5 $18) 26. Nb3 {[%cal Oa1d1]} Bg5 27. Qxh5 {[%mdl 8192] [#] White does not recover from this.} (27. Qf2 $11) 27... Kg7 $1 $19 {Black is clearly winning.} 28. Be3 Bxe3+ 29. Rxe3 Rh8 $1 (29... Nxe5 $2 {too greedy.} 30. Rae1 Ng6 31. Rd3 $18 (31. Rxe6 Rf6 $18)) 30. Rd3 Rxh5 31. Rxd5 Bxd5 32. Nd4 Nxe5 33. Re1 Kf6 34. a3 Rch8 35. h3 gxh3 36. gxh3 Rg8+ 37. Kf2 Rh4 {[%cal Oe5d3] Threatens to win with ...Nd3+!} 38. Rd1 Nc4 {Weighted Error Value: White=0.78/Black=0.38.  Loses game:     	White=1     	---        Mistake:       	White=4     	Black=3      Inaccurate:     	White=1     	Black=1      OK:         	White=7     	Black=5      Best:        	---       	Black=1      Strong:       	---       	Black=2} 0-1

[Event "45th FIDE Womens Olympiad 2024"]
[Site "Budapest"]
[Date "2024.09.11"]
[Round "1.130"]
[White "Agrest, Inna"]
[Black "Sukhu, Gloria"]
[Result "1-0"]
[ECO "B45"]
[WhiteElo "2197"]
[BlackElo "1634"]
[Annotator "NA RC"]
[PlyCount "55"]
[EventDate "2024.09.05"]
[EventType "team-tourn"]
[EventCountry "HUN"]
[SourceTitle "playchess.com"]
[Source "ChessBase"]
[SourceQuality "1"]
[WhiteTeam "Sweden"]
[BlackTeam "Fiji"]
[WhiteTeamCountry "SWE"]
[BlackTeamCountry "FIJ"]
[TimeControl "40/5400+30:1800+30"]

1. e4 c5 2. Nf3 Nc6 3. d4 cxd4 4. Nxd4 Nf6 5. Nc3 e6 6. Nxc6 bxc6 7. e5 Nd5 8. Ne4 d6 9. c4 Nb6 10. Bg5 Be7 11. Nxd6+ Kf8 12. Qh5 g6 13. Bxe7+ Qxe7 14. Qh6+ Kg8 15. Rd1 Nd7 16. f4 Nc5 17. b4 Nd7 18. c5 a6 19. Be2 f6 20. Bf3 Rb8 21. O-O fxe5 22. Bxc6 Nf6 23. fxe5 Ng4 24. Qf4 Nxe5 25. Qxe5 Bd7 26. Bxd7 Qxd7 27. Nf5 Qxd1 28. Nh6# 1-0

[Event "45th FIDE Womens Olympiad 2024"]
[Site "Budapest"]
[Date "2024.09.11"]
[Round "1.131"]
[White "Terubea, Cydel"]
[Black "Cramling Bellon, Anna"]
[Result "0-1"]
[ECO "B40"]
[WhiteElo "1681"]
[BlackElo "2066"]
[Annotator "NA"]
[PlyCount "60"]
[EventDate "2024.09.05"]
[EventType "team-tourn"]
[EventCountry "HUN"]
[SourceTitle "playchess.com"]
[Source "ChessBase"]
[SourceQuality "1"]
[WhiteTeam "Fiji"]
[BlackTeam "Sweden"]
[WhiteTeamCountry "FIJ"]
[BlackTeamCountry "SWE"]
[TimeControl "40/5400+30:1800+30"]

1. e4 c5 2. Nf3 e6 3. Nc3 Nc6 4. d4 cxd4 5. Nxd4 Nf6 6. Nf3 Bb4 7. Bd3 Qc7 8. h3 h6 9. Bd2 a6 10. Qe2 d6 11. O-O O-O 12. Rfe1 Rd8 13. e5 dxe5 14. Nxe5 Nd4 15. Qe3 Bc5 16. Qg3 Nf5 17. Qf3 Bd6 18. Ng4 Be7 19. Ne4 Nxe4 20. Qxe4 Bd7 21. Nxh6+ gxh6 22. g4 Bc6 23. Qe5 Qxe5 24. Rxe5 Nh4 25. Rh5 Nf3+ 26. Kf1 Nxd2+ 27. Kg1 Bg5 28. h4 Nf3+ 29. Kf1 Nxh4 30. Re1 Bg2+ 0-1

[Event "45th FIDE Womens Olympiad 2024"]
[Site "Budapest"]
[Date "2024.09.11"]
[Round "1.132"]
[White "Zaritovskaja, Margarita"]
[Black "Prasad, Tanvi"]
[Result "1-0"]
[ECO "B00"]
[WhiteElo "2009"]
[BlackElo "1564"]
[Annotator "NA RC"]
[PlyCount "29"]
[EventDate "2024.09.05"]
[EventType "team-tourn"]
[EventCountry "HUN"]
[SourceTitle "playchess.com"]
[Source "ChessBase"]
[SourceQuality "1"]
[WhiteTeam "Sweden"]
[BlackTeam "Fiji"]
[WhiteTeamCountry "SWE"]
[BlackTeamCountry "FIJ"]
[TimeControl "40/5400+30:1800+30"]

1. e4 b6 2. d4 Bb7 3. Nc3 e6 4. Nf3 Nf6 5. Bd3 Bb4 6. Qe2 O-O 7. e5 Nd5 8. Bxh7+ Kxh7 9. Ng5+ Kg8 10. Qh5 Re8 11. Qxf7+ Kh8 12. Qh5+ Kg8 13. Qh7+ Kf8 14. Qh8+ Ke7 15. Qxg7# 1-0

[Event "45th FIDE Womens Olympiad 2024"]
[Site "Budapest"]
[Date "2024.09.11"]
[Round "1.133"]
[White "Khamdamova, Afruza"]
[Black "Seine, Rose Berline"]
[Result "1-0"]
[ECO "C65"]
[WhiteElo "2313"]
[BlackElo "1778"]
[Annotator "ChessBase"]
[PlyCount "71"]
[EventDate "2024.09.05"]
[EventType "team-tourn"]
[EventCountry "HUN"]
[SourceTitle "playchess.com"]
[Source "ChessBase"]
[SourceQuality "1"]
[WhiteTeam "Uzbekistan"]
[BlackTeam "Haiti"]
[WhiteTeamCountry "UZB"]
[BlackTeamCountry "HAI"]
[TimeControl "40/5400+30:1800+30"]

1. e4 e5 2. Nf3 Nc6 3. Bb5 Nf6 4. d3 Bc5 5. O-O d6 6. c3 Bd7 7. Re1 Qe7 8. d4 Bb6 9. h3 O-O-O 10. d5 Nb8 11. Bxd7+ Nbxd7 12. a4 c6 13. a5 Bc7 14. a6 b6 15. dxc6 Nb8 16. c4 Nxc6 17. Bg5 h6 18. Bxf6 Qxf6 19. Nc3 Qe6 20. Qa4 Ne7 21. Nd5 Qd7 22. Nxe7+ Qxe7 23. b4 Qd7 24. Qb3 Qe6 25. Nd2 Kd7 26. Nf1 b5 27. Ne3 bxc4 28. Qa4+ Kc8 29. Qc6 d5 30. Qb7+ Kd7 31. Nxd5 Qc6 32. Nf6+ Qxf6 33. Red1+ Ke8 34. Qxc7 Rd4 35. Qb8+ Qd8 36. Qxe5+ 1-0

[Event "45th FIDE Womens Olympiad 2024"]
[Site "Budapest"]
[Date "2024.09.11"]
[Round "1.134"]
[White "Cadeau, Merisena"]
[Black "Yakubbaeva, Nilufar"]
[Result "0-1"]
[ECO "D30"]
[WhiteElo "1671"]
[BlackElo "2248"]
[Annotator "ChessBase"]
[PlyCount "60"]
[EventDate "2024.09.05"]
[EventType "team-tourn"]
[EventCountry "HUN"]
[SourceTitle "playchess.com"]
[Source "ChessBase"]
[SourceQuality "1"]
[WhiteTeam "Haiti"]
[BlackTeam "Uzbekistan"]
[WhiteTeamCountry "HAI"]
[BlackTeamCountry "UZB"]
[TimeControl "40/5400+30:1800+30"]

1. d4 Nf6 2. c4 e6 3. Nf3 d5 4. Bg5 Be7 5. Qc2 O-O 6. e3 h6 7. Bh4 b6 8. Bxf6 Bxf6 9. g3 Bb7 10. Bg2 Nd7 11. Nbd2 c5 12. cxd5 Bxd5 13. e4 Bb7 14. e5 Be7 15. Nb3 cxd4 16. O-O Rc8 17. Qd2 Bxf3 18. Bxf3 Nxe5 19. Be4 Bf6 20. Rfd1 Nc4 21. Qe2 e5 22. Rac1 Nd6 23. Rxc8 Qxc8 24. Rc1 Qd7 25. Bc6 Qe6 26. Bd5 Qxd5 27. Rc7 e4 28. Qc2 d3 29. Qc1 Nb5 30. Rc4 Bxb2 0-1

[Event "45th FIDE Womens Olympiad 2024"]
[Site "Budapest"]
[Date "2024.09.11"]
[Round "1.135"]
[White "Omonova, Umida"]
[Black "Jonet, Davena"]
[Result "1-0"]
[ECO "C24"]
[WhiteElo "2032"]
[BlackElo "1659"]
[Annotator "NA RC"]
[PlyCount "57"]
[EventDate "2024.09.05"]
[EventType "team-tourn"]
[EventCountry "HUN"]
[SourceTitle "playchess.com"]
[Source "ChessBase"]
[SourceQuality "1"]
[WhiteTeam "Uzbekistan"]
[BlackTeam "Haiti"]
[WhiteTeamCountry "UZB"]
[BlackTeamCountry "HAI"]
[TimeControl "40/5400+30:1800+30"]

1. e4 e5 2. Nf3 Nc6 3. Bc4 Nf6 4. d3 d5 5. exd5 Nxd5 6. O-O Be7 7. Re1 f6 8. a4 Bg4 9. Nbd2 Nb6 10. Bb5 Qd6 11. h3 Bd7 12. Ne4 Qe6 13. a5 Nc8 14. Bc4 Qxc4 15. dxc4 Be6 16. b3 O-O 17. Ba3 Rd8 18. Qe2 f5 19. Bxe7 N8xe7 20. Nc5 Bf7 21. Nxe5 Nxe5 22. Qxe5 Ng6 23. Qxf5 b6 24. axb6 cxb6 25. Ne6 Bxe6 26. Qxe6+ Kh8 27. Rad1 Rf8 28. Rd7 h6 29. Qxg6 1-0

[Event "45th FIDE Womens Olympiad 2024"]
[Site "Budapest"]
[Date "2024.09.11"]
[Round "1.136"]
[White "Dunat, Kineberlie"]
[Black "Nadirjanova, Nodira"]
[Result "0-1"]
[ECO "D00"]
[WhiteElo "1582"]
[BlackElo "2059"]
[Annotator "NA"]
[PlyCount "75"]
[EventDate "2024.09.05"]
[EventType "team-tourn"]
[EventCountry "HUN"]
[SourceTitle "playchess.com"]
[Source "ChessBase"]
[SourceQuality "1"]
[WhiteTeam "Haiti"]
[BlackTeam "Uzbekistan"]
[WhiteTeamCountry "HAI"]
[BlackTeamCountry "UZB"]
[TimeControl "40/5400+30:1800+30"]

1. d4 d5 2. Bf4 c5 3. Nf3 Nc6 4. e3 Bg4 5. Be2 e6 6. Nbd2 Nf6 7. c3 cxd4 8. exd4 Bd6 9. Ne5 Bxe2 10. Qxe2 Qc7 11. Bg3 O-O 12. O-O Rab8 13. f4 Nd7 14. Ndf3 Ne7 15. Ng5 h6 16. Ngf3 Nf6 17. Nd2 Nf5 18. Bf2 Be7 19. a3 Nd6 20. Ng4 Nfe4 21. Be1 f5 22. Ne5 b5 23. Qh5 Nxd2 24. Bxd2 Ne4 25. Bc1 a5 26. Ng6 Rf6 27. Ne5 Kh7 28. Be3 g6 29. Qe2 Rff8 30. g4 b4 31. axb4 axb4 32. cxb4 Rxb4 33. Rac1 Qb7 34. Rc2 Rc8 35. Rxc8 Qxc8 36. Rc1 Qb7 37. Rc2 Bd6 38. Rc6 0-1

[Event "45th FIDE Womens Olympiad 2024"]
[Site "Budapest"]
[Date "2024.09.11"]
[Round "1.137"]
[White "Shipindo, Rauha"]
[Black "Koskela, Niina"]
[Result "0-1"]
[ECO "E05"]
[WhiteElo "1677"]
[BlackElo "2173"]
[Annotator "NA"]
[PlyCount "76"]
[EventDate "2024.09.05"]
[EventType "team-tourn"]
[EventCountry "HUN"]
[SourceTitle "playchess.com"]
[Source "ChessBase"]
[SourceQuality "1"]
[WhiteTeam "Namibia"]
[BlackTeam "Norway"]
[WhiteTeamCountry "NAM"]
[BlackTeamCountry "NOR"]
[TimeControl "40/5400+30:1800+30"]

1. d4 Nf6 2. Nf3 e6 3. g3 d5 4. Bg2 Be7 5. c4 dxc4 6. Qa4+ Bd7 7. Qxc4 Bc6 8. O-O O-O 9. Nc3 a6 10. a4 b5 11. axb5 axb5 12. Nxb5 Rxa1 13. Nc3 Qc8 14. h3 Qa6 15. Qxa6 Nxa6 16. Ne5 Bxg2 17. Kxg2 Nb4 18. Bd2 Rxf1 19. Kxf1 c5 20. dxc5 Bxc5 21. g4 Rd8 22. Bg5 Bd4 23. Nf3 Bxc3 24. bxc3 Rd1+ 25. Kg2 Nc6 26. Be3 Nd5 27. Nd4 Nxe3+ 28. fxe3 Nxd4 29. cxd4 Kf8 30. Kf3 Ke7 31. e4 Rxd4 32. e3 Rd2 33. Kg3 e5 34. Kf3 Kd6 35. h4 Kc5 36. h5 Kc4 37. Kg3 Kd3 38. Kf3 Re2 0-1

[Event "45th FIDE Womens Olympiad 2024"]
[Site "Budapest"]
[Date "2024.09.11"]
[Round "1.138"]
[White "Stanford, Sheila Barth"]
[Black "Beukes Jamie-Nicole"]
[Result "1-0"]
[ECO "B22"]
[WhiteElo "2175"]
[BlackElo "1735"]
[Annotator "ChessBase"]
[PlyCount "65"]
[EventDate "2024.09.05"]
[EventType "team-tourn"]
[EventCountry "HUN"]
[SourceTitle "playchess.com"]
[Source "ChessBase"]
[SourceQuality "1"]
[WhiteTeam "Norway"]
[BlackTeam "Namibia"]
[WhiteTeamCountry "NOR"]
[BlackTeamCountry "NAM"]
[TimeControl "40/5400+30:1800+30"]

1. e4 c5 2. Nf3 e6 3. c3 Nc6 4. d4 cxd4 5. cxd4 d6 6. Nc3 Nf6 7. Bd3 Be7 8. O-O O-O 9. a3 a6 10. h3 b5 11. e5 dxe5 12. dxe5 Nd5 13. Nxd5 Qxd5 14. Qc2 Nd4 15. Nxd4 Qxd4 16. Bxh7+ Kh8 17. Be4 Rb8 18. Bf4 Bb7 19. Bxb7 Qxf4 20. Qe4 Qd2 21. b4 Qd7 22. Bc6 Qc7 23. Rac1 Rfc8 24. Qe3 Qb6 25. Qxb6 Rxb6 26. Be4 Rc4 27. Rxc4 bxc4 28. Rc1 g6 29. Rxc4 Kg7 30. f4 Rb5 31. Rc7 Bd8 32. Rb7 Bb6+ 33. Kf1 1-0

[Event "45th FIDE Womens Olympiad 2024"]
[Site "Budapest"]
[Date "2024.09.11"]
[Round "1.139"]
[White "Nepando, Jolly"]
[Black "Ni, Viktorija"]
[Result "0-1"]
[ECO "B23"]
[WhiteElo "1642"]
[BlackElo "2163"]
[Annotator "ChessBase"]
[PlyCount "56"]
[EventDate "2024.09.05"]
[EventType "team-tourn"]
[EventCountry "HUN"]
[SourceTitle "playchess.com"]
[Source "ChessBase"]
[SourceQuality "1"]
[WhiteTeam "Namibia"]
[BlackTeam "Norway"]
[WhiteTeamCountry "NAM"]
[BlackTeamCountry "NOR"]
[TimeControl "40/5400+30:1800+30"]

1. e4 c5 2. Nc3 e6 3. Nge2 Nc6 4. g3 d5 5. exd5 exd5 6. d4 Bg4 7. Bg2 Nxd4 8. h3 Bf3 9. Kf1 Nf6 10. Bg5 Be7 11. Qd3 Bxg2+ 12. Kxg2 Nxe2 13. Nxe2 O-O 14. c3 d4 15. h4 h6 16. Bf4 Qd5+ 17. f3 dxc3 18. Qxc3 Ng4 19. Rad1 Qc6 20. Kg1 Bf6 21. Qa3 Rfe8 22. Rd6 Qc8 23. Kf1 Ne5 24. g4 Nc4 25. Qd3 Nxd6 26. g5 Be5 27. gxh6 Bxf4 28. Rg1 Bxh6 0-1